Workbook

Sheet Стр.1

Sheet Стр.2-3
A1: 2. Финансовые параметры деятельности учреждения
A2: 2.1. Показатели финансового состояния учреждения
A3: на "30" декабря 2016 г.
A4: (последнюю отчетную дату)
A6: Наименование показателя | BU6: Сумма, рублей
B7: I. Нефинансовые активы, всего: | BU7: 212,710,343.90
B8: из них:
B9: 1.1. Общая балансовая стоимость недвижимого государственного имущества, всего | BU9: 191,266,702.09
B10: в том числе:
B11: 1.1.1. Стоимость недвижимого имущества, закрепленного собственником имущества за государственным учреждением на праве оперативного управления | BU11: 191,266,702.09
B12: 1.1.2. Стоимость недвижимого имущества, приобретенного государственным учреждением (подразделением) за счет выделенных собственником имущества учреждения средств | BU12: 0.00
B13: 1.1.3. Стоимость недвижимого имущества, приобретенного государственным учреждением (подразделением) за счет доходов, полученных от платной и иной приносящей доход деятельности | BU13: 0.00
B14: 1.1.4. Стоимость недвижимого имущества, переданного в аренду, безвозмездное пользование | BU14: 0.00
B15: 1.1.5. Остаточная стоимость недвижимого государственного имущества | BU15: 135,031,340.64
B16: 1.2. Общая балансовая стоимость движимого государственного имущества, всего | BU16: 21,443,641.81
B17: в том числе:
B18: 1.2.1. Общая балансовая стоимость особо ценного движимого имущества | BU18: 15,935,901.29
B19: 1.2.2. Стоимость иного движимого имущества, приобретенного государственным учреждением за счет доходов, полученных за счет бюджетных средств | BU19: 3,563,620.90
B20: 1.2.3. Стоимость движимого имущества, приобретенного учреждением за счет доходов, полученных от платной и иной приносящей доход деятельности | BU20: 1,944,119.62
B21: 1.2.4. Стоимость движимого имущества, приобретенного учреждением за счет средств обязательного медицинского страхования | BU21: 0.00
B22: 1.2.5. Остаточная стоимость особо ценного движимого имущества | BU22: 4,197,400.42
B23: II. Финансовые активы, всего
B24: из них:
B25: 2.1. Денежные средства учреждения, всего | BU25: 0.00
B26: в том числе:
B27: 2.1.1. Денежные средства учреждения на счетах | BU27: 0.00
B28: 2.1.2. Денежные средства учреждения, размещенные на депозиты в кредитной организации | BU28: 0.00
B29: 2.2. Иные финансовые инструменты | BU29: 0.00
B30: 2.3. Дебиторская задолженность по доходам, полученным за счет средств областного бюджета, всего | BU30: 0.00
B31: 2.4. Дебиторская задолженность по расходам, всего | BU31: 90,763.21
B32: в том числе:
B33: 2.4.1. Дебиторская задолженность по выданным авансам, полученным за счет средств областного бюджета | BU33: 90,763.21
B34: 2.4.2. Дебиторская задолженность по выданным авансам за счет доходов, полученных от платной и иной приносящей доход деятельности | BU34: 0.00
B35: 2.4.3. Дебиторская задолженность по выданным авансам за счет средств обязательного медицинского страхования | BU35: 0.00
B36: III. Обязательства, всего | BU36: 88,277.98
B37: из них:
B38: 3.1. Долговые обязательства | BU38: 0.00
B39: 3.2. Кредиторская задолженность: | BU39: 88,277.98
B40: в том числе:
B41: 3.2.1. Кредиторская задолженность по принятым обязательствам за счет средств областного бюджета, всего: | BU41: 71,344.22
B42: в том числе:
B43: по оплате труда | BU43: 0.00
B44: по начислениям на выплаты по оплате труда | BU44: 0.00
B45: по социальным и иным выплатам населению | BU45: 30,783.00
B46: по расходам на закупку товаров, работ, услуг | BU46: 40,561.22
B47: по уплате налогов, сборов и иных платежей | BU47: 0.00
B48: по прочим расходам
B49: 3.2.2. Кредиторская задолженность по принятым обязательствам за счет доходов, полученных от платной и иной приносящей доход деятельности, всего: | BU49: 16,933.76
B50: в том числе:
B51: по оплате труда | BU51: 0.00
B52: по начислениям на выплаты по оплате труда | BU52: 0.00
B53: по социальным и иным выплатам населению | BU53: 1,248.00
B54: по расходам на закупку товаров, работ, услуг | BU54: 13,385.76
B55: по уплате налогов, сборов и иных платежей | BU55: 0.00
B56: по прочим расходам | BU56: 2,300.00
B57: 3.2.3. Кредиторская задолженность по принятым обязательствам за счет средств обязательного медицинского страхования, всего: | BU57: 0.00
B58: в том числе:
B59: по оплате труда | BU59: 0.00
B60: по начислениям на выплаты по оплате труда | BU60: 0.00
B61: по социальным и иным выплатам населению | BU61: 0.00
B62: по расходам на закупку товаров, работ, услуг | BU62: 0.00
B63: по уплате налогов, сборов и иных платежей | BU63: 0.00
B64: по прочим расходам | BU64: 0.00
B65: 3.2.4. Просроченная кредиторская задолженность, всего | BU65: 0.00
B66: в том числе:
B67: по оплате труда | BU67: 0.00
B68: по начислениям на выплаты по оплате труда | BU68: 0.00
B69: по социальным и иным выплатам населению | BU69: 0.00
B70: по расходам на закупку товаров, работ, услуг | BU70: 0.00
B71: по уплате налогов, сборов и иных платежей | BU71: 0.00
B72: по прочим расходам | BU72: 0.00

Sheet Стр 4-5
A1: 2.2. Показатели по поступлениям и выплатам учреждения*
A2: на "30" декабря 2016 г.
A4: Наименование показателя | B4: Код строки | C4: Код по бюджетной классификации РФ | D4: КОСГУ | E4: Объем финансового обеспечения, руб. (с точностью до двух знаков после запятой - 0,00)
E5: Всего | F5: в том числе:
F6: Субсидия на финансовое обеспечение выполнения государственного задания | G6: Субсидии, предоставляемые в соответствии с абзацем вторым пункта 1 статьи 78.1 БК РФ | H6: Субсидии на осуществление капитальных вложений | I6: Средства обязательного медицинского страхования | J6: Поступления от оказания услуг (выполнения работ) на платной основе и от иной приносящей доход деятельности
J7: всего | K7: из них гранты
A8: 1 | B8: 2 | C8: 3 | D8: 4 | E8: 5 | F8: 6 | G8: 7 | H8: 8 | I8: 9 | J8: 10 | K8: 11 | L8: 1
A9: Поступления от доходов, всего: | B9: 100 | C9: х | E9: =F9+G9+J9 -> 64,525,388.11 | F9: =F12 -> 50,343,380.00 | G9: =G18 -> 9,156,368.71 | H9: 0.00 | I9: 0.00 | J9: =J11+J12+J19 -> 5,025,639.40 | L9: 1
A10: в том числе: | L10: 1
A11: Доходы от собственности | B11: 110 | C11: 000 0000 0000000000 120 | D11: 120 | E11: =J11 -> 64,008.78 | F11: х | G11: х | H11: х | I11: х | J11: 64,008.78 | K11: х | L11: 1
A12: Доходы от оказания услуг, работ | B12: 120 | C12: 000 0000 0000000000 130 | D12: 130 | E12: =F12+I12+J12 -> 55,184,247.62 | F12: 50,343,380.00 | G12: х | H12: х | I12: 0.00 | J12: 4,840,867.62 | L12: 1
A13: в том числе: | L13: 1
A14: Услуга № 1/работа | B14: 1201 | C14: 000 0000 0000000000 000 | F14: 0.00 | G14: х | H14: х | I14: 0.00 | L14: 1
A15: Услуга № 2/работа | B15: 1202 | C15: 000 0000 0000000000 000 | F15: 0.00 | G15: х | H15: х | I15: 0.00 | L15: 1
A16: Доходы от штрафов, пеней, иных сумм принудительного изъятия | B16: 130 | C16: 000 0000 0000000000 000 | E16: 0.00 | F16: х | G16: х | H16: х | I16: х | J16: 0.00 | K16: х | L16: 1
A17: Безвозмездные поступления от наднациональных организаций, правительств иностранных государств, международных финансовых организаций | B17: 140 | C17: 000 0000 0000000000 000 | E17: 0.00 | F17: х | G17: х | H17: х | I17: х | J17: 0.00 | K17: х | L17: 1
A18: Иные субсидии, предоставленные из бюджета | B18: 150 | C18: 000 0000 0000000000 180 | D18: 180 | E18: =G18 -> 9,156,368.71 | F18: х | G18: 9,156,368.71 | I18: х | J18: х | K18: х | L18: 1
A19: Прочие доходы | B19: 160 | C19: 000 0000 0000000000 180 | D19: 180 | F19: х | G19: х | H19: х | I19: х | J19: 120,763.00 | L19: 1
A20: Доходы от операций с активами | B20: 180 | C20: х | D20: 400 | F20: х | G20: х | H20: х | I20: х | K20: х | L20: 1
A21: в том числе: | L21: 1
A22: Услуга № 1/работа | B22: 1801 | C22: х | F22: х | G22: х | H22: х | I22: х | K22: х | L22: 1
A23: Услуга № 2/работа | B23: 1802 | C23: х | F23: х | G23: х | H23: х | I23: х | K23: х | L23: 1
A24: Выплаты по расходам, всего: | B24: 200 | C24: х | E24: =F24+G24+J24 -> 64,525,388.11 | F24: =F28+F32+F36+F48+F62+F64+F68+F74+F79+F84+F88+F41 -> 50,343,380.00 | G24: =G36+G41+G57+G74+G79+G88 -> 9,156,368.71 | H24: 0.00 | J24: =J28+J32+J48+J57+J64+J68+J74+J79+J88 -> 5,025,639.40 | L24: 1
A25: в том числе на: | L25: 1
A26: Выплаты персоналу всего: | B26: 210 | L26: 1
A27: из них: | L27: 1
A28: оплата труда | B28: 211 | D28: 211 | E28: =F28+G28+H28+I28+J28 -> 24,444,405.76 | F28: =F29 -> 23,175,861.25 | J28: =J30 -> 1,268,544.51 | L28: 1
C29: 804 0704 0210100050 111 | E29: =F29 -> 23,175,861.25 | F29: 23,175,861.25
C30: 000 0000 0000000000 111 | E30: =J30 -> 1,268,544.51 | J30: 1,268,544.51
A32: начисления на выплаты по оплате труда | B32: 213 | D32: 213 | E32: =E33+E34 -> 7,087,295.85 | F32: =F33 -> 6,767,067.59 | J32: =J34 -> 320,228.26
C33: 804 0704 0210100050 119 | E33: =F33+G33+H33+I33+J33 -> 6,767,067.59 | F33: 6,767,067.59
C34: 000 0000 0000000000 119 | E34: =J34 -> 320,228.26 | J34: 320,228.26 | L34: 1
A36: Социальные и иные выплаты населению, всего | B36: 220 | D36: 212 | E36: =E37+E38+E39 -> 856,392.37 | F36: =F37 -> 149,923.05 | G36: =G38+G39 -> 706,469.32 | L36: 1
A37: из них: | C37: 804 0704 0210100050 112 | E37: =F37 -> 149,923.05 | F37: 149,923.05 | L37: 1
C38: 804 0709 0240213060 112 | E38: =G38 -> 674,773.52 | G38: 674,773.52
C39: 804 0707 0210120110 112 | E39: =G39 -> 31,695.80 | G39: 31,695.80
D41: 262 | E41: =E43+E44+E45+E42 -> 1,580,328.72 | F41: =F42 -> 44,329.12 | G41: =G43+G44+G45 -> 1,535,999.60
C42: 804 0704 0210100050 112 | E42: =F42 -> 44,329.12 | F42: 44,329.12
C43: 804 0704 0330200050 321 | E43: =G43 -> 1,289,140.00 | G43: 1,289,140.00
C44: 804 0707 0210120110 323 | E44: =G44 -> 96,523.60 | G44: 96,523.60 | L44: 1
C45: 804 0704 0230200050 321 | E45: =G45 -> 150,336.00 | G45: 150,336.00
A47: Уплату налогов, сборов и иных платежей, всего | B47: 230 | L47: 1
A48: из них: | D48: 290 | E48: =F48+J48 -> 3,139,604.12 | F48: =F49+F50+F51 -> 1,646,885.00 | J48: =J53+J52 -> 1,492,719.12 | L48: 1
C49: 804 0704 0210100050 851 | E49: =F49 -> 1,576,156.00 | F49: 1,576,156.00
C50: 804 0704 0210100050 853 | E50: =F50 -> 53,750.00 | F50: 53,750.00
C51: 804 0704 0210100050 113 | E51: =F51 -> 16,979.00 | F51: 16,979.00
C52: 000 0000 0000000000 851 | E52: =J52 -> 812,792.00 | J52: 812,792.00
C53: 000 0000 0000000000 853 | E53: =J53 -> 679,927.12 | J53: 679,927.12
L54: 1
A55: Безвозмездные перечисления организациям | B55: 240 | C55: 000 0000 0000000000 000 | D55: 241 | E55: 0.00 | L55: 1
A57: Прочие расходы (кроме расходов на закупку товаров, работ, услуг) | B57: 250 | D57: 290 | E57: =E58+E60+E59 -> 2,884,088.97 | G57: =G58 -> 2,853,003.20 | J57: =J60+J59 -> 31,085.77 | L57: 1
C58: 804 0704 0210113800 340 | E58: =G58 -> 2,853,003.20 | G58: =2763403.2+89600 -> 2,853,003.20
C59: 000 0000 0000000000 113 | E59: =J59 -> 12,776.76 | J59: 12,776.76
C60: 000 0000 0000000000 244 | E60: =J60 -> 18,309.01 | J60: 18,309.01
A61: Расходы на закупку товаров, работ, услуг, всего | B61: 260 | L61: убрали крест
A62: Услуги связи | C62: 804 0704 0210100050 244 | D62: 221 | E62: =F62 -> 146,132.92 | F62: 146,132.92
A64: Транспортные услуги | D64: 222 | E64: =E65+E66 -> 90,096.38 | F64: =F65 -> 20,411.42 | J64: =J66 -> 69,684.96
C65: 804 0704 0210100050 244 | E65: =F65 -> 20,411.42 | F65: 20,411.42
C66: 000 0000 0000000000 244 | E66: =J66 -> 69,684.96 | J66: 69,684.96
A68: Коммунальные услуги | D68: 223 | E68: =E69+E70 -> 14,008,106.98 | F68: =F69 -> 13,703,232.73 | J68: =J70 -> 304,874.25
C69: 804 0704 0210100050 244 | E69: =F69 -> 13,703,232.73 | F69: 13,703,232.73
C70: 000 0000 0000000000 244 | E70: =J70 -> 304,874.25 | J70: 304,874.25
A72: Арендная плата за пользование имуществом | D72: 224 | E72: =F72 -> 0.00 | F72: 0.00 | J72: 0.00
A74: Работы, услуги по содержанию имущества | D74: 225 | E74: =E75+E76+E77 -> 3,516,399.12 | F74: =F75 -> 1,328,333.54 | G74: =G76 -> 1,681,867.80 | J74: =J77 -> 506,197.78
C75: 804 0704 0210100050 244 | E75: =F75 -> 1,328,333.54 | F75: 1,328,333.54
C76: 804 0709 0230200050 243 | E76: =G76 -> 1,681,867.80 | G76: 1,681,867.80
C77: 000 0000 0000000000 244 | E77: =J77 -> 506,197.78 | J77: 506,197.78
A79: Прочие работы, услуги | D79: 226 | E79: =E80+E82+E81 -> 3,214,782.26 | F79: =F80 -> 2,009,285.21 | G79: =G81 -> 575,324.23 | J79: =J82 -> 630,172.82
C80: 804 0704 0210100050 621 | E80: =F80 -> 2,009,285.21 | F80: 2,009,285.21
C81: 804 0709 0230200050 244 | E81: =G81 -> 575,324.23 | G81: 575,324.23
C82: 000 0000 0000000000 226 | E82: =J82 -> 630,172.82 | J82: 630,172.82
A84: Увеличение стоимости основных средств | C84: 804 0704 0210100050 244 | D84: 310 | E84: =F84 -> 808,685.09 | F84: 808,685.09
A86: Увеличение стоимости нематериальных активов | C86: 804 0704 0210100050 244 | D86: 320 | E86: =F86 -> 0.00 | F86: 0.00
A88: Увеличение стоимости материальных запасов | D88: 340 | E88: =E89+E90+E91+E92 -> 2,749,069.57 | F88: =F89 -> 543,233.08 | G88: =G90+G91 -> 1,803,704.56 | J88: =J92 -> 402,131.93
C89: 804 0704 0210100050 244 | D89: 340 | E89: =F89 -> 543,233.08 | F89: 543,233.08
C90: 804 0704 0330200050 323 | D90: 340 | E90: =G90 -> 818,178.00 | G90: 818,178.00
C91: 804 0704 0230200050 323 | D91: 340 | E91: =G91 -> 985,526.56 | G91: 985,526.56
C92: 000 0000 0000000000 244 | D92: 340 | E92: =J92 -> 402,131.93 | J92: 402,131.93
A93: Поступления финансовых активов, всего: | B93: 300 | C93: х | F93: 0.00 | G93: 0.00 | H93: 0.00 | L93: 1
A94: из них: | L94: 1
A95: Увеличение остатков средств | B95: 310 | F95: 0.00 | G95: 0.00 | H95: 0.00 | L95: 1
A96: Прочие поступления | B96: 320 | F96: 0.00 | G96: 0.00 | H96: 0.00 | L96: 1
A97: Выбытие финансовых активов, всего | B97: 400 | F97: 0.00 | G97: 0.00 | H97: 0.00 | L97: 1
A98: из них: | L98: 1
A99: Уменьшение остатков средств | B99: 410 | F99: 0.00 | G99: 0.00 | H99: 0.00 | L99: 1
A100: Прочие выбытия | B100: 420 | F100: 0.00 | G100: 0.00 | H100: 0.00 | L100: 1
A101: Остаток средств на начало года | B101: 500 | C101: х | F101: 0.00 | G101: 0.00 | H101: 0.00 | J101: 0.00 | L101: 1
A102: Остаток средств на конец года | B102: 600 | C102: х | F102: =F9-F24 -> 0.00 | G102: =G9-G24 -> 0.00 | H102: 0.00 | J102: =J11+J12+J19-J30-J34-J70-J53-J77-J82-J92-J60-J66-J52-J59 -> 0.00 | L102: 1
L103: 1
A104: * Заполняется в порядке, установленном приказом Минфина России от 28.07.2010 № 81н "О требованиях к плану финансово-хозяйственной деятельности государственного (муниципального) учреждения" ( в редакции приказа от 24.09.2015 №140н) | L104: 1
E106: =E101+E9-E24 -> 0

Sheet Стр.6
A1: 2.2.1. Показатели выплат по расходам на закупку товаров, работ, услуг учреждения*
A2: на "30" декабря 2016 г.
A4: Наименование показателя | B4: Код строки | C4: Год начала закупки | D4: Сумма выплат по расходам на закупку товаров, работ и услуг, руб. (с точностью до двух знаков после запятой - 0,00
D5: Всего на закупки | G5: в том числе:
G6: в соответствии с Федеральным законом от 5 апреля 2013 г. № 44-ФЗ "О контрактной системе в сфере закупок товаров, работ, услуг для обеспечения государственных и муниципальных нужд" | J6: в соответствии с Федеральным законом от 18 июля 2011 г. № 223-ФЗ "О закупках товаров, работ, услуг отдельными видами юридических лиц"
D7: на 20__г. очередной финансовый год | E7: на 20__г. 1-ый год планового периода | F7: на 20__г. 2-ой год планового периода | G7: на 20__г. очередной финансовый год | H7: на 20__г. 1-ый год планового периода | I7: на 20__г. 2-ой год планового периода | J7: на 2016 г. очередной финансовый год | K7: на 20__г. 1-ый год планового периода | L7: на 20__г. 2-ой год планового периода
A8: 1 | B8: 2 | C8: 3 | D8: 4 | E8: 5 | F8: 6 | G8: 7 | H8: 8 | I8: 9 | J8: 10 | K8: 11 | L8: 12
A9: Выплаты по расходам на закупку товаров, работ, услуг всего: | B9: 0001 | C9: х
A10: в том числе:
A11: на оплату контрактов заключенных до начала очередного финансового года: | B11: 1001 | C11: х | D11: 0 | E11: 0 | F11: 0 | G11: 0 | H11: 0 | I11: 0 | J11: 0 | K11: 0 | L11: 0
A13: на закупку товаров работ, услуг по году начала закупки: | B13: 2001 | J13: 23,360,646.09
A15: * Заполняется в порядке, установленном приказом Минфина России от 28.07.2010 № 81н "О требованиях к плану финансово-хозяйственной деятельности государственного (муниципального) учреждения" ( в редакции приказа от 24.09.2015 №140н)

Sheet Стр 7
A1: 2.3. Сведения о средствах, поступающих во временное распоряжение учреждения*
A2: на "30" декабря 2016 г.
A3: (очередной финансовый год)
A5: Наименование показателя | B5: Код строки | C5: Сумма (руб., с точностью до двух знаков после запятой - 0,00)
A6: 1 | B6: 2 | C6: 3
A7: Остаток средств на начало года | B7: 010 | C7: 0
A8: Остаток средств на конец года | B8: 020 | C8: 0
A9: Поступление | B9: 030 | C9: 347,042.35
A11: Выбытие | B11: 040 | C11: 347,042.35
A15: 2.4. Справочная информация
A17: Наименование показателя | B17: Код строки | C17: Сумма, рублей
A18: 1 | B18: 2 | C18: 3
A19: Объем публичных обязательств, всего: | B19: 010 | C19: 0
A20: Объем бюджетных инвестиций (в части переданных полномочий государственного (муниципального) заказчика в соответствии с Бюджетным кодексом Российской Федерации), всего: | B20: 020 | C20: 0
A21: Объем средств, поступивших во временное распоряжение, всего: | B21: 030 | C21: 347,042.35
A22: * Заполняется в порядке, установленном приказом Минфина России от 28.07.2010 № 81н "О требованиях к плану финансово-хозяйственной деятельности государственного (муниципального) учреждения" ( в редакции приказа от 24.09.2015 №140н)

Sheet стр 8-10
A1: 3. Сведения и показатели об использовании ресурсов учреждения
A2: на "30" декабря 2016 г.
A4: Наименование показателя | B4: Единицы измерения | C4: за 2015г. отчетный финансовый год | D4: за 2016г. текущий финансовый год | E4: на 2017г. очередной финансовый год | F4: на 20__г. 1-ый год планового периода | G4: на 20__г. 2-ой год планового периода
A5: 1 | B5: 2 | C5: 3 | D5: 4 | E5: 5 | F5: 6 | G5: 7
A6: 1. Сведения об уровне оплаты труда работников учреждения | B6: х | C6: х | D6: х | E6: х | F6: х | G6: х
A7: 1.1. Фонд оплаты труда, всего | B7: тыс. руб. | C7: 23521.8 | D7: 24276 | E7: 24276
A8: из них: выплаты стимулирующего характера | B8: тыс. руб. | C8: 5365.2 | D8: 5881.7 | E8: 5881.7
A9: в том числе:
A10: 1.1.1.Фонд оплаты труда руководителей учреждения и их заместителей | B10: тыс. руб. | C10: 3654.1 | D10: 3970.6 | E10: 3970.6
A11: из них: выплаты стимулирующего характера | B11: тыс. руб. | C11: 1003.4 | D11: 1176.5 | E11: 1176.5
A12: 1.1.2. Фонд оплаты труда прочих работников учреждения | B12: тыс. руб. | C12: 10649.6 | D12: 10696.3 | E12: 10696.3
A13: из них: выплаты стимулирующего характера | B13: тыс. руб. | C13: 2666.1 | D13: 2663.9 | E13: 2663.9
A14: 1.2. Фонд оплаты труда, отдельных категорий работников бюджетной сферы, повышение оплаты труда которых предусмотрено указами Президента РФ, всего | B14: тыс. руб. | C14: 9218.1 | D14: 9609.1 | E14: 9609.1
A15: в том числе по категориям работников:
B16: тыс. руб.
A17: 1.3. Среднесписочная численность работников учреждения | B17: чел. | C17: 61 | D17: 58 | E17: 58
A18: в том числе:
A19: 1.3.1. Среднесписочная численность руководителей учреждения и их заместителей | B19: чел. | C19: 4 | D19: 4 | E19: 4
A20: 1.3.2. Среднесписочная численность прочих работников учреждения | B20: чел. | C20: 39 | D20: 36 | E20: 36
A21: 1.4. Среднесписочная численность работников учреждения с которыми заключены эффективные контракты | B21: чел. | C21: 62 | D21: 58 | E21: 58
A22: в том числе:
A23: 1.4.1. Среднесписочная численность руководителей учреждения и их заместителей с которыми заключены эффективные контракты | B23: чел. | C23: 4 | D23: 4 | E23: 4
A24: 1.4.2. Среднесписочная численность прочих работников учреждения с которыми заключены эффективные контракты | B24: чел. | C24: 39 | D24: 36 | E24: 36
A25: 1.5. Среднесписочная численность, отдельных категорий работников бюджетной сферы, повышение оплаты труда которых предусмотрено указами Президента РФ, всего | B25: чел. | C25: 18 | D25: 18 | E25: 18
A26: в том числе по категориям работников:
A27: 1.6. Средняя заработная плата, необходимая для реализации указов Президента РФ, предусматривающих повышение оплаты труда отдельных категорий работников бюджетной сферы | B27: руб. | C27: 44000 | D27: 44000 | E27: 44000
A28: 1.7. Средняя заработная плата, сложившаяся/прогнозируемая в отчетном периоде | B28: руб. | C28: 32134 | D28: х | E28: х | F28: х | G28: х
A29: в том числе по категориям работников, повышение оплаты труда которых предусмотрено указами Президента РФ: | C29: 42676 | D29: 43757 | E29: 43757
B30: руб.
A31: 1.8. Отношение средней заработной платы руководителей учреждения и их заместителей к средней заработной плате работников учреждения | B31: % | C31: 237 | D31: 237 | E31: 237
A32: 1.9. Отношение средней заработной платы, сложившейся/прогнозируемой в отчетном периоде к средней заработной плате, необходимой для реализации указов Президента РФ | B32: % | C32: х | D32: х | E32: х | F32: х | G32: х
A33: в том числе по категориям работников, повышение оплаты труда которых предусмотрено указами Президента РФ: | C33: 96 | D33: 99 | E33: 99
B34: %
A35: 2. Сведения об использовании имущества учреждения | B35: х | C35: х | D35: х | E35: х | F35: х | G35: х
A36: 2.1. Общая площадь объектов недвижимого имущества, закрепленная за учреждением | B36: м² | C36: 14983.1 | D36: 10533.7 | E36: 10533.7
A37: в том числе:
A38: 2.1.1. Площадь недвижимого имущества в безвозмездном пользовании, всего | B38: м² | C38: 14983.1 | D38: 10533.7 | E38: 10533.7
A39: 2.1.2.Площадь недвижимого имущества в безвозмездном пользовании, не используемая для выполнения государственного задания | B39: м²
A40: 2.1.3. Площадь недвижимого имущества, переданная в аренду | B40: м²
A41: 2.2. Затраты на содержание имущества учреждения | B41: тыс. руб. | C41: 2441.3 | D41: 1828 | E41: 1828
A42: в том числе:
A43: 2.2.1. Затраты на содержание имущества учреждения, не используемого для выполнения государственного задания | B43: тыс. руб.
A44: 2.3. Коэффициент износа основных средств (отношение величины износа основных средств на конец отчетного периода к стоимости основных средств учреждения на конец отчетного периода) | B44: ед.
A45: 2.4. Коэффициент обновления основных средств (отношение стоимости основных средств поступивших за отчетный период к общей стоимости основных средств учреждения на конец отчетного периода) | B45: ед.
A46: 2.5. Коэффициенты ремонта зданий, характеризующие величину фактических расходов на капитальный ремонт зданий, приходящуюся на один рубль балансовой стоимости основных средств (в том числе за счет бюджетных средств) | B46: ед.
A47: в том числе:
B48: ед.
A49: 3. Показатели характеризующие объем и качество оказываемой услуги
A50: 3.1. Общее количество государственных услуг, оказываемых учреждением | B50: ед. | C50: 12 | D50: 12 | E50: 12
A51: в том числе:
A52: 3.1.1. Количество государственных услуг, в отношении которых нормативно установлены требования к качеству их оказания | B52: ед. | C52: 12 | D52: 12 | E52: 12
A53: 4. Показатели открытости и прозрачности деятельности
A54: 4.1. Обеспечено размещение (актуализация) сведений об учреждении на официальном сайте в сети Интернет www.bus.gov.ru | B54: да-1/нет-0 | C54: 1 | D54: 1 | E54: 1
A55: 4.2. Обеспечено размещение в сети Интернет информации о результатах деятельности учреждения за отчетный год | B55: да-1/нет-1 | C55: 1 | D55: 1 | E55: 1

Sheet стр.11
A1: 4. Перечень мероприятий по повышению эффективности деятельности учреждения
A2: на "30" декабря 2016 г.
A4: Наименование мероприятия | B4: Сроки проведения | C4: Ожидаемый результат реализации | E4: Затраты, необходимые на проведение мероприятия, тыс. руб
A5: 1. Повышение эффективности управления и кадрового потенциала учреждения
A7: 2. Повышение эффективности управления государственной собственностью
A8: 2.1. Передача части здания общежития, расположенного по адресу: Мурманская обл., г.Полярные Зори ул.Курчатова д.24/1 в муниципальную собственность | B8: до 30.12.2016 г. | E8: 157.32
A9: 2.2. Сдача в аренду свободных площадей | B9: до 31.12.2016 г. | E9: 25.00
A10: 3. Повышение качества предоставления государственных услуг
A12: 4. Направления оптимизации расходов учреждения
A13: 4.1. Поэтапное исполнение программы энергоэффективности и энергосбережения | B13: до 31.12.2016 г. | C13: 1749.70 | E13: 248.10
A14: Итого: | B14: х | C14: х | E14: =E8+E9+E13 -> 430.42
A17: Руководитель учреждения | E17: Макашина О.И.
C18: (подпись) | E18: (расшифровка подписи)
A19: Руководитель финансово-экономической | E19: Федорова О.А.
A20: службы учреждения | C20: (подпись) | E20: (расшифровка подписи)
A21: тел. (81532) 74763
A22: на "30" декабря 2016 г.
